[Event "6. Internationales Spandauer Weihnachtsopen 2023"]
[Site "Spandau, Germany"]
[Date "2023.12.27"]
[Round "1.1"]
[White "Baldauf, Marco"]
[Black "Frischmann, Lucas"]
[Result "0-1"]
[TimeControl "90 min+30 sec"]
[WhiteElo "2488"]
[BlackElo "1784"]

1. d4 {[%clk 01:30:57]} d5 {[%clk 01:30:43]} {[%emt 00:00:11]} 2. c4 {[%clk
01:31:24]} {[%emt 00:00:20]} e6 {[%clk 01:31:05]} 3. Nc3 {[%clk 01:31:50]} Nf6
{[%clk 01:31:29]} {[%emt 00:00:22]} 4. Nf3 {[%clk 01:31:02]} {[%emt 00:00:59]}
Be7 {[%clk 01:31:24]} {[%emt 00:00:40]} 5. g3 {[%clk 01:31:13]} {[%emt
00:00:14]} O-O {[%clk 01:31:03]} {[%emt 00:00:56]} 6. Bg2 {[%clk 01:31:40]} c6
{[%clk 01:30:32]} {[%emt 00:00:58]} 7. O-O {[%clk 01:30:25]} {[%emt 00:01:52]}
Nbd7 {[%clk 01:30:27]} {[%emt 00:00:36]} 8. Qd3 {[%clk 01:29:58]} {[%emt
00:00:51]} b6 {[%clk 01:28:43]} {[%emt 00:05:09]} 9. e4 {[%clk 01:27:50]} dxe4
{[%clk 01:23:31]} {[%emt 00:10:47]} 10. Nxe4 {[%clk 01:28:16]} Bb7 {[%clk
01:23:00]} 11. Nxf6+ {[%clk 01:15:55]} {[%emt 00:08:51]} Bxf6 {[%clk 01:21:11]}
{[%emt 00:02:03]} 12. Rd1 {[%clk 01:14:24]} {[%emt 00:02:13]} Qe7 {[%clk
01:18:35]} {[%emt 00:02:54]} 13. Bf4 {[%clk 01:06:15]} {[%emt 00:08:39]} Rfd8
{[%clk 01:14:22]} {[%emt 00:04:40]} 14. Qc2 {[%clk 01:03:34]} {[%emt 00:06:38]}
Rac8 {[%clk 01:09:27]} {[%emt 00:02:00]} 15. Re1 {[%clk 01:00:21]} {[%emt
00:03:39]} Qf8 {[%clk 01:04:00]} {[%emt 00:06:15]} 16. Rad1 {[%clk 00:59:23]}
{[%emt 00:01:11]} h6 {[%clk 00:54:41]} {[%emt 00:09:48]} 17. h4 {[%clk
00:59:14]} {[%emt 00:00:48]} a5 {[%clk 00:45:49]} {[%emt 00:16:48]} 18. h5
{[%clk 00:52:09]} {[%emt 00:00:11]} Be7 {[%clk 00:37:02]} {[%emt 00:38:48]} 19.
g4 {[%clk 00:46:28]} c5 {[%clk 00:28:20]} 20. Be3 {[%clk 00:34:09]} cxd4 {[%clk
00:21:19]} {[%emt 00:06:07]} 21. Bxd4 {[%clk 00:34:37]} b5 {[%clk 00:21:28]}
{[%emt 00:00:16]} 22. b3 {[%clk 00:33:22]} {[%emt 00:01:51]} bxc4 {[%clk
00:16:45]} {[%emt 00:05:17]} 23. bxc4 {[%clk 00:32:01]} {[%emt 00:01:41]} Bf6
{[%clk 00:17:01]} {[%emt 00:00:18]} 24. Ng5 {[%clk 00:25:35]} {[%emt 00:10:33]}
Bxg5 {[%clk 00:14:26]} 25. Bxb7 {[%clk 00:26:02]} Rc7 {[%clk 00:11:44]} {[%emt
00:24:03]} 26. Bf3 {[%clk 00:25:37]} Qa3 {[%clk 00:09:44]} 27. Qc3 {[%clk
00:21:26]} {[%emt 00:00:09]} Qb4 {[%clk 00:03:25]} 28. Be2 {[%clk 00:18:34]}
Nc5 {[%clk 00:01:03]} 29. Bxg7 {[%clk 00:14:33]} {[%emt 00:04:12]} Rcd7 {[%clk
00:00:35]} {[%emt 00:00:55]} 30. Rxd7 {[%clk 00:13:58]} {[%emt 00:01:05]} Rxd7
{[%clk 00:00:55]} {[%emt 00:00:18]} 31. Rb1 {[%clk 00:14:24]} Qxb1+ {[%clk
00:01:08]} {[%emt 00:00:09]} 32. Kg2 {[%clk 00:14:38]} {[%emt 00:00:20]} Qb4
{[%clk 00:00:57]} {[%emt 00:00:51]} 33. Qe5 {[%clk 00:14:58]} Nd3 {[%clk
00:00:49]} {[%emt 00:00:45]} 34. Bxd3 {[%clk 00:15:14]} {[%emt 00:00:05]} Rxd3
{[%clk 00:01:18]} 35. Bh8 {[%clk 00:15:38]} {[%emt 00:00:08]} Qb7+ {[%clk
00:01:27]} {[%emt 00:00:23]} 36. Kh2 {[%clk 00:15:58]} {[%emt 00:00:21]} Bf4+
{[%clk 00:00:52]} {[%emt 00:00:49]} 37. Qxf4 {[%clk 00:16:25]} {[%emt
00:00:09]} Kxh8 {[%clk 00:01:20]} 38. Qxh6+ {[%clk 00:15:55]} {[%emt 00:01:13]}
Kg8 {[%clk 00:01:50]} 39. Qg5+ {[%clk 00:16:20]} Kh7 {[%clk 00:01:19]} {[%emt
00:00:54]} 40. h6 {[%clk 00:16:41]} {[%emt 00:00:05]} Qb8+ {[%clk 00:01:03]}
{[%emt 00:00:45]} 41. Kg2 {[%clk 00:17:06]} {[%emt 00:00:14]} Qg8 {[%clk
00:01:11]} {[%emt 00:00:22]} 42. Qf4 {[%clk 00:17:32]} Qa8+ {[%clk 00:00:38]}
{[%emt 00:01:01]} 43. f3 {[%clk 00:17:50]} {[%emt 00:00:10]} Rd7 {[%clk
00:00:38]} {[%emt 00:00:43]} 44. c5 {[%clk 00:17:58]} {[%emt 00:00:09]} Qd5
{[%clk 00:00:45]} {[%emt 00:00:26]} 45. Kh3 {[%clk 00:18:22]} {[%emt 00:00:08]}
Qxc5 {[%clk 00:00:33]} {[%emt 00:00:37]} 46. Qf6 {[%clk 00:18:27]} {[%emt
00:00:28]} Qd4 {[%clk 00:00:54]} {[%emt 00:00:06]} 0-1

[Event "6. Internationales Spandauer Weihnachtsopen 2023"]
[Site "Spandau, Germany"]
[Date "2023.12.27"]
[Round "1.2"]
[White "Morczynski, Joachim"]
[Black "Dahl, Christoph"]
[Result "0-1"]
[TimeControl "90 min+30 sec"]
[WhiteElo "1781"]
[BlackElo "2357"]

1. e4 {[%clk 01:30:57]} c5 {[%clk 01:30:42]} 2. Nf3 {[%clk 01:31:17]} d6 {[%clk
01:30:49]} 3. d4 {[%clk 01:31:40]} cxd4 {[%clk 01:31:06]} 4. Qxd4 {[%clk
01:32:03]} {[%emt 00:00:19]} Nc6 {[%clk 01:30:51]} {[%emt 00:01:32]} 5. Bb5
{[%clk 01:32:26]} {[%emt 00:00:08]} Bd7 {[%clk 01:30:42]} {[%emt 00:01:21]} 6.
Bxc6 {[%clk 01:32:48]} Bxc6 {[%clk 01:30:54]} 7. Nc3 {[%clk 01:33:11]} Nf6
{[%clk 01:30:29]} 8. Bg5 {[%clk 01:33:35]} {[%emt 00:00:15]} e6 {[%clk
01:29:17]} {[%emt 00:01:35]} 9. Qd3 {[%clk 01:33:42]} {[%emt 00:00:09]} Be7
{[%clk 01:28:42]} {[%emt 00:01:01]} 10. Nd4 {[%clk 01:33:59]} {[%emt 00:00:41]}
Bd7 {[%clk 01:23:35]} {[%emt 00:06:58]} 11. O-O-O {[%clk 01:28:24]} {[%emt
00:09:19]} O-O {[%clk 01:19:16]} 12. f4 {[%clk 01:19:32]} {[%emt 00:21:55]} Rc8
{[%clk 01:12:45]} 13. Ndb5 {[%clk 01:08:41]} {[%emt 00:06:15]} Bxb5 {[%clk
01:05:56]} {[%emt 00:07:39]} 14. Nxb5 {[%clk 01:08:59]} d5 {[%clk 00:53:11]}
{[%emt 00:13:35]} 15. Bxf6 {[%clk 01:07:05]} {[%emt 00:01:45]} Bxf6 {[%clk
00:53:35]} 16. exd5 {[%clk 01:06:46]} {[%emt 00:02:18]} Rc5 {[%clk 00:47:40]}
{[%emt 00:10:45]} 17. Qb3 {[%clk 00:47:17]} {[%emt 00:18:58]} Qd7 {[%clk
00:38:51]} {[%emt 00:05:02]} 18. Na3 {[%clk 00:23:18]} {[%emt 00:25:11]} exd5
{[%clk 00:38:35]} 19. c3 {[%clk 00:23:07]} d4 {[%clk 00:32:15]} {[%emt
00:06:56]} 20. Nc2 {[%clk 00:22:44]} {[%emt 00:01:03]} Rfc8 {[%clk 00:34:05]}
{[%emt 00:02:28]} 21. Rd2 {[%clk 00:16:37]} {[%emt 00:06:13]} Qc7 {[%clk
00:21:26]} {[%emt 00:09:32]} 22. Nxd4 {[%clk 00:15:26]} {[%emt 00:01:28]} Qxf4
{[%clk 00:21:49]} {[%emt 00:01:03]} 23. Ne2 {[%clk 00:14:26]} {[%emt 00:00:47]}
Qe3 {[%clk 00:21:29]} {[%emt 00:00:40]} 24. Kd1 {[%clk 00:11:13]} {[%emt
00:03:43]} Bg5 {[%clk 00:17:48]} {[%emt 00:04:55]} 25. Rd7 {[%clk 00:10:12]}
{[%emt 00:01:18]} Rf5 {[%clk 00:17:53]} {[%emt 00:00:09]} 26. h4 {[%clk
00:06:57]} {[%emt 00:03:44]} Bh6 {[%clk 00:16:10]} {[%emt 00:02:10]} 27. Qc4
{[%clk 00:02:26]} {[%emt 00:04:57]} Re8 {[%clk 00:14:09]} {[%emt 00:02:29]} 28.
Qd3 {[%clk 00:02:50]} {[%emt 00:00:14]} Qf2 {[%clk 00:07:04]} {[%emt 00:07:32]}
29. Qe4 {[%clk 00:02:17]} {[%emt 00:00:51]} Kf8 {[%clk 00:04:18]} {[%emt
00:03:21]} 30. Qb4+ {[%clk 00:02:25]} {[%emt 00:00:37]} Rc5 {[%clk 00:03:25]}
{[%emt 00:01:19]} 31. Ng3 {[%clk 00:01:54]} {[%emt 00:00:53]} b6 {[%clk
00:02:36]} {[%emt 00:03:40]} 32. Ne4 {[%clk 00:01:15]} Qxg2 {[%clk 00:01:37]}
{[%emt 00:00:52]} 33. Re1 {[%clk 00:01:30]} Qg4+ {[%clk 00:01:45]} 34. Kc2
{[%clk 00:01:55]} {[%emt 00:00:12]} Qxd7 {[%clk 00:01:59]} {[%emt 00:00:06]} 35.
Nxc5 {[%clk 00:02:20]} {[%emt 00:00:14]} Qd2+ {[%clk 00:02:15]} {[%emt
00:00:04]} 36. Kb3 {[%clk 00:02:46]} {[%emt 00:00:07]} Qd5+ {[%clk 00:02:38]}
{[%emt 00:00:37]} 37. c4 {[%clk 00:02:57]} Qxc5 {[%clk 00:02:54]} 38. Rxe8+
{[%clk 00:03:01]} {[%emt 00:00:31]} Kxe8 {[%clk 00:03:19]} {[%emt 00:00:04]} 39.
Qa4+ {[%clk 00:03:27]} b5 {[%clk 00:03:37]} {[%emt 00:00:27]} 40. cxb5 {[%clk
00:03:47]} Qe3+ {[%clk 00:03:58]} {[%emt 00:00:28]} 41. Kc2 {[%clk 00:04:04]}
Qd2+ {[%clk 00:04:23]} 0-1

[Event "6. Internationales Spandauer Weihnachtsopen 2023"]
[Site "Spandau, Germany"]
[Date "2023.12.27"]
[Round "1.3"]
[White "Tschernatsch, Johannes"]
[Black "Kuban, Andreas"]
[Result "1-0"]
[TimeControl "90 min+30 sec"]
[WhiteElo "2335"]
[BlackElo "1774"]

1. e4 {[%clk 01:30:58]} {[%emt 02:27:33]} c5 {[%clk 01:30:28]} 2. Nf3 {[%clk
01:31:22]} d6 {[%clk 01:30:54]} 3. Bb5+ {[%clk 01:31:37]} Nd7 {[%clk 01:31:11]}
4. a4 {[%clk 01:31:59]} {[%emt 00:00:08]} Ngf6 {[%clk 01:28:56]} 5. Nc3 {[%clk
01:32:22]} a6 {[%clk 01:27:17]} 6. Be2 {[%clk 01:32:41]} g6 {[%clk 01:22:22]} 7.
a5 {[%clk 01:33:02]} Bg7 {[%clk 01:16:58]} {[%emt 00:00:42]} 8. O-O {[%clk
01:33:06]} O-O {[%clk 01:13:58]} 9. d3 {[%clk 01:33:30]} b5 {[%clk 01:03:28]}
{[%emt 00:05:11]} 10. axb6 {[%clk 01:33:52]} Rb8 {[%clk 01:03:17]} {[%emt
00:00:49]} 11. Qd2 {[%clk 01:28:51]} {[%emt 00:06:25]} Qxb6 {[%clk 00:58:35]}
{[%emt 00:04:26]} 12. Qg5 {[%clk 01:24:51]} {[%emt 00:04:04]} Re8 {[%clk
00:51:51]} {[%emt 00:07:51]} 13. Qh4 {[%clk 01:24:05]} {[%emt 00:00:40]} Nf8
{[%clk 00:49:17]} {[%emt 00:03:36]} 14. e5 {[%clk 01:20:17]} {[%emt 00:03:44]}
N6d7 {[%clk 00:38:56]} {[%emt 00:16:00]} 15. Nd5 {[%clk 01:18:20]} Qd8 {[%clk
00:39:12]} 16. exd6 {[%clk 01:17:00]} Bf6 {[%clk 00:26:05]} {[%emt 00:12:58]}
17. Nxe7+ {[%clk 01:11:42]} {[%emt 00:10:18]} Rxe7 {[%clk 00:22:54]} 18. dxe7
{[%clk 01:11:40]} Qxe7 {[%clk 00:22:55]} {[%emt 00:00:13]} 19. Qe4 {[%clk
01:08:49]} {[%emt 00:03:32]} Ne6 {[%clk 00:23:00]} {[%emt 00:00:43]} 20. d4
{[%clk 01:05:12]} {[%emt 00:03:41]} Bb7 {[%clk 00:19:40]} {[%emt 00:03:46]} 21.
d5 {[%clk 01:04:36]} {[%emt 00:01:33]} c4 {[%clk 00:14:56]} {[%emt 00:04:59]}
22. Bxc4 {[%clk 01:02:42]} {[%emt 00:02:14]} Qb4 {[%clk 00:13:00]} {[%emt
00:02:32]} 23. Bd2 {[%clk 00:57:38]} {[%emt 00:09:21]} Qxb2 {[%clk 00:11:31]}
24. Rab1 {[%clk 00:56:34]} Nec5 {[%clk 00:09:48]} {[%emt 00:01:55]} 25. Rxb2
{[%clk 00:51:40]} {[%emt 00:05:32]} Nxe4 {[%clk 00:10:03]} {[%emt 00:00:05]} 26.
Rbb1 {[%clk 00:48:32]} {[%emt 00:03:42]} Ndc5 {[%clk 00:05:52]} {[%emt
00:04:35]} 27. Bd3 {[%clk 00:47:02]} {[%emt 00:02:00]} Nxd2 {[%clk 00:03:16]}
{[%emt 00:03:43]} 28. Nxd2 {[%clk 00:47:25]} Rd8 {[%clk 00:03:33]} 29. Ne4
{[%clk 00:46:32]} {[%emt 00:01:13]} Nxe4 {[%clk 00:03:08]} {[%emt 00:01:13]} 30.
Rxb7 {[%clk 00:43:50]} {[%emt 00:03:19]} Nc5 {[%clk 00:03:22]} 31. Rb6 {[%clk
00:42:54]} {[%emt 00:01:26]} Bd4 {[%clk 00:03:10]} {[%emt 00:00:47]} 32. Bxa6
{[%clk 00:40:32]} {[%emt 00:02:33]} Rxd5 {[%clk 00:02:35]} {[%emt 00:01:24]} 33.
Bc4 {[%clk 00:38:57]} {[%emt 00:01:47]} Re5 {[%clk 00:02:31]} {[%emt 00:00:49]}
34. Rd6 {[%clk 00:37:49]} {[%emt 00:01:19]} Bc3 {[%clk 00:02:01]} {[%emt
00:02:23]} 35. Rd5 {[%clk 00:37:37]} 1-0

[Event "6. Internationales Spandauer Weihnachtsopen 2023"]
[Site "Spandau, Germany"]
[Date "2023.12.27"]
[Round "1.4"]
[White "Stein, Siegfried"]
[Black "Goluch, Piotr"]
[Result "0-1"]
[TimeControl "90 min+30 sec"]
[WhiteElo "1771"]
[BlackElo "2312"]

1. e4 {[%clk 01:30:55]} {[%emt 00:16:02]} c6 {[%clk 01:30:54]} 2. d4 {[%clk
01:31:03]} d5 {[%clk 01:31:20]} 3. f3 {[%clk 01:31:17]} dxe4 {[%clk 01:31:33]}
4. fxe4 {[%clk 01:31:34]} e5 {[%clk 01:31:51]} 5. Nf3 {[%clk 01:31:33]} Be6
{[%clk 01:32:14]} 6. Nc3 {[%clk 01:31:09]} Nd7 {[%clk 01:29:00]} 7. Be2 {[%clk
01:27:44]} Ngf6 {[%clk 01:26:50]} 8. Bg5 {[%clk 01:23:46]} Qa5 {[%clk
01:26:26]} 9. Qd2 {[%clk 01:21:05]} {[%emt 00:01:41]} Bb4 {[%clk 01:26:25]}
{[%emt 00:01:01]} 10. Bd3 {[%clk 01:15:24]} {[%emt 00:05:45]} O-O-O {[%clk
01:15:24]} {[%emt 00:11:36]} 11. O-O {[%clk 01:06:02]} {[%emt 00:10:00]} exd4
{[%clk 01:14:21]} {[%emt 00:01:16]} 12. Nxd4 {[%clk 01:05:44]} {[%emt
00:03:20]} Bc5 {[%clk 01:09:51]} {[%emt 00:03:58]} 13. Nce2 {[%clk 01:01:42]}
{[%emt 00:03:17]} Qxd2 {[%clk 01:09:59]} {[%emt 00:02:03]} 14. Bxd2 {[%clk
01:01:37]} Ne5 {[%clk 00:48:49]} {[%emt 00:22:10]} 15. Bc3 {[%clk 01:01:08]}
{[%emt 00:00:10]} Bg4 {[%clk 00:43:01]} {[%emt 00:05:50]} 16. Kh1 {[%clk
01:00:02]} {[%emt 00:01:48]} Rhe8 {[%clk 00:42:37]} {[%emt 00:00:52]} 17. Nf3
{[%clk 00:54:27]} {[%emt 00:05:44]} Nxd3 {[%clk 00:40:22]} {[%emt 00:12:21]} 18.
cxd3 {[%clk 00:54:27]} Rxd3 {[%clk 00:40:30]} 19. Nf4 {[%clk 00:50:52]} Rd7
{[%clk 00:38:46]} 20. h3 {[%clk 00:40:51]} {[%emt 00:09:02]} Bxf3 {[%clk
00:37:31]} {[%emt 00:09:49]} 21. gxf3 {[%clk 00:40:54]} Bd4 {[%clk 00:37:22]}
22. Rad1 {[%clk 00:33:14]} Bxc3 {[%clk 00:37:36]} {[%emt 00:00:36]} 23. Rxd7
{[%clk 00:32:37]} {[%emt 00:01:07]} Nxd7 {[%clk 00:36:44]} {[%emt 00:01:48]} 24.
bxc3 {[%clk 00:32:53]} Ne5 {[%clk 00:37:07]} 25. Kg2 {[%clk 00:32:52]} Rd8
{[%clk 00:37:32]} {[%emt 00:00:10]} 26. Rf2 {[%clk 00:32:59]} {[%emt 00:00:15]}
Rd1 {[%clk 00:37:54]} {[%emt 00:00:34]} 27. Rc2 {[%clk 00:32:11]} {[%emt
00:01:29]} b5 {[%clk 00:37:25]} {[%emt 00:01:34]} 28. Ne2 {[%clk 00:30:38]}
{[%emt 00:00:55]} Kc7 {[%clk 00:37:23]} {[%emt 00:04:28]} 29. Nd4 {[%clk
00:29:44]} g6 {[%clk 00:34:22]} {[%emt 00:03:52]} 30. f4 {[%clk 00:29:48]} Nc4
{[%clk 00:33:20]} 31. Kf2 {[%clk 00:25:18]} {[%emt 00:10:12]} Rh1 {[%clk
00:32:19]} 32. Kg3 {[%clk 00:24:21]} Re1 {[%clk 00:32:44]} 33. Ne2 {[%clk
00:23:41]} a6 {[%clk 00:29:42]} {[%emt 00:02:03]} 34. e5 {[%clk 00:23:26]}
{[%emt 00:00:20]} c5 {[%clk 00:27:30]} {[%emt 00:05:08]} 35. Kf3 {[%clk
00:21:55]} Rf1+ {[%clk 00:27:22]} {[%emt 00:02:49]} 36. Ke4 {[%clk 00:21:27]}
Rh1 {[%clk 00:26:33]} 37. Ng3 {[%clk 00:19:41]} {[%emt 00:03:43]} Rxh3 {[%clk
00:26:39]} 38. Rg2 {[%clk 00:19:41]} Kc6 {[%clk 00:26:39]} 39. f5 {[%clk
00:19:51]} Rh4+ {[%clk 00:27:03]} {[%emt 00:02:18]} 40. Kd3 {[%clk 00:19:03]}
Nxe5+ {[%clk 00:27:27]} 0-1

[Event "6. Internationales Spandauer Weihnachtsopen 2023"]
[Site "Spandau, Germany"]
[Date "2023.12.27"]
[Round "1.5"]
[White "Lorenz, Sascha"]
[Black "Nguyen, Tuan Kiet"]
[Result "1/2-1/2"]
[TimeControl "90 min+30 sec"]
[WhiteElo "2296"]
[BlackElo "1768"]

1. Nf3 {[%clk 01:30:53]} {[%emt 00:48:44]} Nf6 {[%clk 01:30:24]} 2. e3 {[%clk
01:30:54]} g6 {[%clk 01:27:52]} {[%emt 00:02:55]} 3. d4 {[%clk 01:29:17]}
{[%emt 00:02:12]} d5 {[%clk 01:26:58]} {[%emt 00:01:10]} 4. Be2 {[%clk
01:29:33]} {[%emt 00:00:12]} Bg7 {[%clk 01:27:13]} {[%emt 00:00:19]} 5. O-O
{[%clk 01:29:49]} {[%emt 00:00:10]} O-O {[%clk 01:27:38]} {[%emt 00:00:07]} 6.
b3 {[%clk 01:29:03]} {[%emt 00:01:35]} Bf5 {[%clk 01:18:44]} {[%emt 00:09:11]}
7. Bb2 {[%clk 01:29:08]} {[%emt 00:00:18]} Nbd7 {[%clk 01:16:50]} {[%emt
00:02:28]} 8. c4 {[%clk 01:26:36]} {[%emt 00:04:13]} c6 {[%clk 01:13:15]}
{[%emt 00:02:48]} 9. Nc3 {[%clk 01:25:43]} {[%emt 00:01:24]} a5 {[%clk
01:08:41]} {[%emt 00:05:21]} 10. Nh4 {[%clk 01:22:43]} {[%emt 00:03:18]} Be6
{[%clk 01:05:47]} {[%emt 00:03:20]} 11. Nf3 {[%clk 01:16:09]} {[%emt 00:07:11]}
Bf5 {[%clk 01:05:39]} {[%emt 00:06:09]} 12. Rc1 {[%clk 01:10:58]} {[%emt
00:00:04]} Rc8 {[%clk 00:59:53]} {[%emt 00:11:03]} 13. Nh4 {[%clk 01:05:47]}
{[%emt 00:00:53]} Be6 {[%clk 00:57:24]} {[%emt 00:03:06]} 14. f4 {[%clk
01:05:31]} {[%emt 00:00:39]} Nb8 {[%clk 00:43:30]} {[%emt 00:14:18]} 15. g4
{[%clk 01:01:43]} {[%emt 00:08:05]} dxc4 {[%clk 00:33:47]} {[%emt 00:06:42]} 16.
bxc4 {[%clk 01:01:24]} {[%emt 00:00:37]} Ne8 {[%clk 00:29:37]} {[%emt
00:04:39]} 17. Bd3 {[%clk 00:45:04]} {[%emt 00:17:08]} Nd6 {[%clk 00:24:41]}
{[%emt 00:05:10]} 18. Qe2 {[%clk 00:44:18]} {[%emt 00:01:15]} Na6 {[%clk
00:21:39]} {[%emt 00:03:35]} 19. f5 {[%clk 00:40:18]} {[%emt 00:04:40]} Bd7
{[%clk 00:20:51]} {[%emt 00:04:51]} 20. c5 {[%clk 00:37:19]} e5 {[%clk
00:17:09]} {[%emt 00:03:55]} 21. fxe6 {[%clk 00:22:56]} {[%emt 00:14:53]} Bxe6
{[%clk 00:16:48]} {[%emt 00:00:51]} 22. Ng2 {[%clk 00:22:52]} {[%emt 00:00:37]}
Ne8 {[%clk 00:15:54]} {[%emt 00:01:22]} 23. Nf4 {[%clk 00:21:07]} {[%emt
00:02:13]} Nac7 {[%clk 00:15:23]} {[%emt 00:01:00]} 24. Nxe6 {[%clk 00:20:12]}
{[%emt 00:01:30]} Nxe6 {[%clk 00:15:29]} {[%emt 00:00:20]} 25. Bc4 {[%clk
00:19:26]} {[%emt 00:01:16]} Nf6 {[%clk 00:12:26]} {[%emt 00:03:44]} 26. Bxe6
{[%clk 00:16:17]} {[%emt 00:03:28]} fxe6 {[%clk 00:12:41]} {[%emt 00:00:15]} 27.
Nb1 {[%clk 00:11:00]} {[%emt 00:24:55]} Qd5 {[%clk 00:10:10]} 28. Bc3 {[%clk
00:09:49]} Ra8 {[%clk 00:08:41]} 29. Be1 {[%clk 00:06:22]} Ne4 {[%clk
00:08:13]} 30. Rxf8+ {[%clk 00:05:43]} Bxf8 {[%clk 00:08:29]} 31. Nc3 {[%clk
00:05:58]} Nxc3 {[%clk 00:08:04]} 32. Bxc3 {[%clk 00:06:19]} Bg7 {[%clk
00:07:15]} 33. Rb1 {[%clk 00:04:51]} {[%emt 00:02:04]} Qd7 {[%clk 00:05:43]} 34.
Qc4 {[%clk 00:03:58]} Kh8 {[%clk 00:05:32]} {[%emt 00:01:18]} 35. Be1 {[%clk
00:04:05]} e5 {[%clk 00:04:32]} {[%emt 00:01:25]} 36. dxe5 {[%clk 00:03:36]}
{[%emt 00:00:36]} Bxe5 {[%clk 00:04:34]} {[%emt 00:01:05]} 37. Bc3 {[%clk
00:03:41]} Bg7 {[%clk 00:02:06]} {[%emt 00:03:10]} 38. Rf1 {[%clk 00:03:35]}
{[%emt 00:00:35]} Bxc3 {[%clk 00:01:43]} {[%emt 00:01:07]} 39. Qxc3+ {[%clk
00:03:46]} Kg8 {[%clk 00:01:41]} {[%emt 00:00:15]} 40. Qc4+ {[%clk 00:03:34]}
{[%emt 00:00:45]} Kg7 {[%clk 00:01:49]} {[%emt 00:01:39]} 41. Qc3+ {[%clk
00:03:07]} Kg8 {[%clk 00:02:06]} 42. Qc4+ {[%clk 00:02:20]} {[%emt 00:01:14]}
Qd5 {[%emt 00:00:40]} 1/2-1/2

[Event "6. Internationales Spandauer Weihnachtsopen 2023"]
[Site "Spandau, Germany"]
[Date "2023.12.27"]
[Round "1.6"]
[White "Borowski, Przemyslaw"]
[Black "Förster, Jonas"]
[Result "0-1"]
[TimeControl "90 min+30 sec"]
[WhiteElo "1763"]
[BlackElo "2275"]

1. d4 {[%clk 01:30:56]} Nf6 {[%clk 01:30:51]} {[%emt 00:00:17]} 2. Bg5 {[%clk
01:31:12]} {[%emt 00:00:17]} d5 {[%clk 01:29:08]} {[%emt 00:02:15]} 3. Bxf6
{[%clk 01:30:33]} {[%emt 00:01:07]} gxf6 {[%clk 01:28:24]} {[%emt 00:01:05]} 4.
e3 {[%clk 01:28:07]} {[%emt 00:02:59]} c5 {[%clk 01:18:46]} {[%emt 00:29:50]} 5.
dxc5 {[%clk 01:23:18]} Nc6 {[%clk 01:08:11]} 6. c3 {[%clk 01:21:51]} e6 {[%clk
01:04:57]} {[%emt 00:03:18]} 7. Nd2 {[%clk 01:13:32]} {[%emt 00:08:53]} Bxc5
{[%clk 01:04:09]} {[%emt 00:01:24]} 8. Ngf3 {[%clk 01:00:53]} {[%emt 00:13:19]}
O-O {[%clk 01:00:30]} {[%emt 00:04:54]} 9. Qa4 {[%clk 00:43:16]} {[%emt
00:17:07]} Kh8 {[%clk 00:32:59]} {[%emt 00:28:02]} 10. Qh4 {[%clk 00:37:51]}
{[%emt 00:05:57]} Rg8 {[%clk 00:32:21]} {[%emt 00:01:14]} 11. Bd3 {[%clk
00:33:05]} {[%emt 00:05:23]} f5 {[%clk 00:31:54]} {[%emt 00:00:56]} 12. Qxd8
{[%clk 00:31:47]} {[%emt 00:01:44]} Rxd8 {[%clk 00:31:32]} {[%emt 00:14:49]} 13.
Nb3 {[%clk 00:28:03]} Be7 {[%clk 00:31:28]} 14. Nbd4 {[%clk 00:26:30]} Bf6
{[%clk 00:30:18]} 15. Ne2 {[%clk 00:21:30]} Bd7 {[%clk 00:28:02]} {[%emt
00:02:42]} 16. O-O-O {[%clk 00:17:07]} {[%emt 00:04:47]} Ne5 {[%clk 00:24:46]}
{[%emt 00:03:44]} 17. Nxe5 {[%clk 00:14:36]} {[%emt 00:03:01]} Bxe5 {[%clk
00:25:06]} {[%emt 00:00:09]} 18. g3 {[%clk 00:14:19]} {[%emt 00:00:46]} b5
{[%clk 00:23:28]} {[%emt 00:02:53]} 19. Nd4 {[%clk 00:11:43]} {[%emt 00:02:23]}
Rab8 {[%clk 00:22:26]} {[%emt 00:01:47]} 20. b4 {[%clk 00:08:47]} {[%emt
00:03:56]} Kg7 {[%clk 00:21:28]} {[%emt 00:02:25]} 21. Kb2 {[%clk 00:08:04]}
Kf6 {[%clk 00:20:45]} {[%emt 00:00:56]} 22. f4 {[%clk 00:06:23]} {[%emt
00:02:01]} Bd6 {[%clk 00:20:38]} {[%emt 00:01:05]} 23. Nf3 {[%clk 00:05:19]}
{[%emt 00:01:02]} h6 {[%clk 00:20:20]} {[%emt 00:01:53]} 24. Rhf1 {[%clk
00:04:17]} {[%emt 00:00:31]} a6 {[%clk 00:19:59]} {[%emt 00:00:47]} 25. a3
{[%clk 00:04:32]} {[%emt 00:00:16]} Rbc8 {[%clk 00:18:34]} {[%emt 00:01:55]} 26.
Rc1 {[%clk 00:04:42]} {[%emt 00:00:21]} Rg8 {[%clk 00:18:19]} {[%emt 00:00:44]}
27. Rg1 {[%clk 00:02:40]} {[%emt 00:02:46]} Ke7 {[%clk 00:17:35]} {[%emt
00:01:51]} 28. a4 {[%clk 00:01:03]} {[%emt 00:01:24]} bxa4 {[%clk 00:09:49]}
{[%emt 00:08:10]} 29. Bxa6 {[%clk 00:01:17]} {[%emt 00:00:25]} Rb8 {[%clk
00:09:33]} {[%emt 00:00:37]} 30. Ka3 {[%clk 00:00:43]} {[%emt 00:01:18]} f6
{[%clk 00:09:33]} {[%emt 00:00:21]} 31. Rgd1 {[%clk 00:00:45]} {[%emt
00:00:20]} Rgd8 {[%clk 00:09:40]} {[%emt 00:00:23]} 32. Rb1 {[%clk 00:00:38]}
{[%emt 00:00:44]} Rb6 {[%clk 00:09:55]} {[%emt 00:00:07]} 33. Be2 {[%clk
00:00:36]} {[%emt 00:03:06]} Rc8 {[%clk 00:09:59]} 34. Rdc1 {[%clk 00:00:47]}
e5 {[%clk 00:08:45]} 35. c4 {[%clk 00:00:46]} {[%emt 00:00:27]} dxc4 {[%clk
00:08:48]} {[%emt 00:00:26]} 36. Rxc4 {[%clk 00:00:48]} {[%emt 00:00:28]} Rcb8
{[%clk 00:07:57]} {[%emt 00:01:52]} 37. Bd1 {[%clk 00:00:32]} {[%emt 00:00:24]}
Be6 {[%clk 00:08:04]} {[%emt 00:00:14]} 0-1